Cogmind - Beta 12 @@@ ROGUE MODE // 2023.06.02 @ 13:54:21 Player: Mr Goldstein Result: Self-destructed Performance ------------- Evolutions (4) 2000 Regions Visited (8) 1600 Robots Destroyed (10) 50 Value Destroyed (207) 207 Prototype IDs (0) 0 Alien Tech Used (0) 0 Bonus (500) 500 TOTAL SCORE: 4357 Bonus ------- Entered DSFs 500 Cogmind --------- Core Integrity 366/850 Matter 177/300 Energy 100/100 System Corruption 0% Temperature Cool (0) Movement Core (50) Location -6/Factory Parts ------- > --- POWER (1) -------- (None) > --- PROPULSION (6) --- (None) > --- UTILITY (6) ------ Advanced Terrain Scan Processor Advanced Terrain Scan Processor Advanced Terrain Scan Processor Advanced Terrain Scan Processor Improved Utility Shielding > --- WEAPON (2) ------- (None) > --- INVENTORY (5) ---- Small Storage Unit Improved Utility Shielding Peak State ------------ > --- POWER ------------ (None) > --- PROPULSION ------- Improved Medium Treads > --- UTILITY ---------- Advanced Terrain Scan Processor Advanced Terrain Scan Processor Advanced Terrain Scan Processor Advanced Terrain Scan Processor Improved Utility Shielding > --- WEAPON ----------- (None) > --- INVENTORY -------- Small Storage Unit Improved Utility Shielding [Rating: 24] Favorites ----------- Power None Propulsion Flight Unit Treads Improved Medium Treads Flight Unit Flight Unit Utility Advanced Terrain Scan Processor Processor Advanced Terrain Scan Processor Protection Improved Utility Shielding Weapon Grenade Launcher Launcher Grenade Launcher Build | -11 -10 -10 -10 -9 -8 -7 -7 -6 ------- Run | Jun Mat Min Exi Min Mat Fac DSF Fac Slots Evolved 8 | . . . . . 4 2 . 2 Power . | . . . . . . . . . Propulsion 4 | . . . . . 2 1 . 1 Utility 4 | . . . . . 2 1 . 1 Weapon . | . . . . . . . . . Parts Attached 10 | . . 3 . . 1 . 5 1 Power . | . . . . . . . . . Engine . | . . . . . . . . . Core . | . . . . . . . . . Reactor . | . . . . . . . . . Propulsion 4 | . . 2 . . 1 . . 1 Treads 1 | . . . . . . . . 1 Leg . | . . . . . . . . . Wheel . | . . . . . . . . . Hover . | . . . . . . . . . Flight 3 | . . 2 . . 1 . . . Utility 5 | . . . . . . . 5 . Device . | . . . . . . . . . Storage . | . . . . . . . . . Processor 4 | . . . . . . . 4 . Hackware . | . . . . . . . . . Protection 1 | . . . . . . . 1 . Artifact . | . . . . . . . . . Weapon 1 | . . 1 . . . . . . Energy Gun . | . . . . . . . . . Energy Cannon . | . . . . . . . . . Ballistic Gun . | . . . . . . . . . Ballistic Cannon . | . . . . . . . . . Launcher 1 | . . 1 . . . . . . Special Weapon . | . . . . . . . . . Impact Weapon . | . . . . . . . . . Slashing Weapon . | . . . . . . . . . Piercing Weapon . | . . . . . . . . . Special Melee Weapon . | . . . . . . . . . Unidentified Prototypes . | . . . . . . . . . Parts Lost 5 | . . . . . 4 . . 1 Power . | . . . . . . . . . Propulsion 4 | . . . . . 3 . . 1 Utility . | . . . . . . . . . Weapon 1 | . . . . . 1 . . . Highest Loss Streak 4 | . . . . . 4 . . 1 To Critical Strikes . | . . . . . . . . . Average Slot Usage (%) 19 | . . 5 42 42 18 . 17 34 Flight 7 | . . . 28 28 12 . . . Processor 4 | . . . . . . . 15 26 Launcher 5 | . . 5 14 14 6 . . . Naked Turns 210 | . 22 124 . . 18 27 19 . Heaviest Build 3 | . . 3 3 3 3 . 2 2 Greatest Support 8 | 3 3 8 8 8 8 3 3 3 Greatest Overweight (x) . | . . . . . . . . . Average Overweight (x) . | . . . . . . . . . Largest Inventory Capacity 5 | 5 5 5 5 5 5 5 5 5 Average Capacity 5 | 5 5 5 5 5 5 5 5 5 Most Carried 2 | 1 2 2 1 1 1 1 2 2 Average Carried 1 | . 1 1 1 1 1 1 1 2 Final Capacity 5 | 5 5 5 5 5 5 5 5 5 Final Carried 2 | 1 2 1 1 1 1 1 2 2 Class Distribution -------------------- 100% | Mutant Dominant Class ---------------- Mutant | -10/Materials Mutant | -10/Mines Mutant | -10/Exiles Mutant | -9/Mines Mutant | -8/Materials Mutant | -7/Factory Mutant | -7/DSF Mutant | -6/Factory Resources | -11 -10 -10 -10 -9 -8 -7 -7 -6 ----------- Run | Jun Mat Min Exi Min Mat Fac DSF Fac Matter Collected 300 | 200 . 18 . . 82 . . . Remotely . | . . . . . . . . . Salvage Created 152 | . . 56 . 11 85 . . . Parts 17 | . . 9 . 1 7 . . . Haulers Intercepted . | . . . . . . . . . Recyclers Shooed . | . . . . . . . . . Parts Field Recycled . | . . . . . . . . . Retrieved Matter . | . . . . . . . . . Parts Self-Destructed . | . . . . . . . . . Prevented . | . . . . . . . . . Kills | -11 -10 -10 -10 -9 -8 -7 -7 -6 ------- Run | Jun Mat Min Exi Min Mat Fac DSF Fac Combat Hostiles Destroyed 14 | . . 10 . 3 1 . . . AOE 14 | . . 10 . 3 1 . . . Classes Destroyed 4 | . . 3 . . 1 . . . Recycler 1 | . . . . . 1 . . . Swarmer 7 | . . 3 . 3 1 . . . Grunt 2 | . . 2 . . . . . . Assembled 5 | . . 5 . . . . . . Best Kill Streak 7 | . . 7 . 3 2 . . . Combat Bots Only 7 | . . 7 . 3 1 . . . Max Kills in Single Turn 2 | . . 2 . 2 2 . . . Gunslinging . | . . . . . . . . . Exploded 2 | . . 2 . 2 1 . . . Melee . | . . . . . . . . . Uniques/NPCs Destroyed . | . . . . . . . . . Combat | -11 -10 -10 -10 -9 -8 -7 -7 -6 -------- Run | Jun Mat Min Exi Min Mat Fac DSF Fac Damage Taken 1193 | . . 119 . 24 341 . . 709 Core 822 | . . 85 . . 253 . . 484 Absorbed by Shields . | . . . . . . . . . Redirected to Shielding 12 | . . . . . . . . 12 Core Remaining (%) 80 | 100 . . . 66 54 . 100 . Volleys Fired 16 | . . 13 . 2 1 . . . Largest 1 | . . 1 . 1 1 . . . Hottest 30 | . . 30 . 30 30 . . . Shots Fired 16 | . . 13 . 2 1 . . . Gun . | . . . . . . . . . Cannon . | . . . . . . . . . Launcher 16 | . . 13 . 2 1 . . . Special . | . . . . . . . . . Kinetic . | . . . . . . . . . Thermal . | . . . . . . . . . Explosive 16 | . . 13 . 2 1 . . . Electromagnetic . | . . . . . . . . . Robot Hit Streak 3 | . . 3 . . . . . . Robot Miss Streak 1 | . . . . 1 . . . . Penetration Max . | . . . . . . . . . Secondary Targets . | . . . . . . . . . Shots Hit Robots 3 | . . 3 . . . . . . Core Hits 22 | . . 15 . 2 4 . . 1 Critical Kills . | . . . . . . . . . Critical Parts Destroyed . | . . . . . . . . . Critical Strikes . | . . . . . . . . . Melee Attacks . | . . . . . . . . . Impact . | . . . . . . . . . Slashing . | . . . . . . . . . Piercing . | . . . . . . . . . Sneak Attacks . | . . . . . . . . . Combat Hostiles . | . . . . . . . . . Follow-up Attacks . | . . . . . . . . . Damage Inflicted 1131 | . . 786 . 172 160 . . 13 Guns . | . . . . . . . . . Cannons . | . . . . . . . . . Explosions 1114 | . . 782 . 172 160 . . . Melee . | . . . . . . . . . Ramming 17 | . . 4 . . . . . 13 Kinetic . | . . . . . . . . . Thermal 94 | . . . . 94 . . . . Explosive 1020 | . . 782 . 78 160 . . . Electromagnetic . | . . . . . . . . . Impact . | . . . . . . . . . Slashing . | . . . . . . . . . Piercing . | . . . . . . . . . Highest Corruption . | . . . . . . . . . Average Corruption . | . . . . . . . . . Corruption Purged . | . . . . . . . . . Corruption Blocked . | . . . . . . . . . Overload Shots . | . . . . . . . . . Overflow Damage 46 | . . 35 . 11 . . . . Projectiles . | . . . . . . . . . Explosions 46 | . . 35 . 11 . . . . Melee . | . . . . . . . . . Knockbacks . | . . . . . . . . . Impact . | . . . . . . . . . Kinetic . | . . . . . . . . . Secondary . | . . . . . . . . . Self-Inflicted Damage 7 | . . 1 . . . . . 6 Shots . | . . . . . . . . . Rammed 6 | . . 3 . . . . . 3 Targets Rammed 6 | . . 3 . . . . . 3 Kicked . | . . . . . . . . . Crushed . | . . . . . . . . . Highest Temperature 22 | . . 10 . . 22 . . . Average Temperature 9 | . . 7 . . 12 . . . Received Heat Transfer 263 | . . 26 . . 153 . . 84 Siege Activations . | . . . . . . . . . Robots Corrupted . | . . . . . . . . . Combat Hostiles . | . . . . . . . . . Parts Fried . | . . . . . . . . . Impact Corruptions . | . . . . . . . . . Robots Melted . | . . . . . . . . . Combat Hostiles . | . . . . . . . . . Parts Melted . | . . . . . . . . . Heat Transferred 150 | . . . . 150 . . . . Parts Sabotaged . | . . . . . . . . . Parts Stolen . | . . . . . . . . . Parts Stripped . | . . . . . . . . . Power Chain Reactions . | . . . . . . . . . Missiles Intercepted . | . . . . . . . . . Alert | -11 -10 -10 -10 -9 -8 -7 -7 -6 ------- Run | Jun Mat Min Exi Min Mat Fac DSF Fac Peak Influence 218 | . . 218 . 136 88 35 39 65 Initial 52 | . . . . . 52 35 24 20 Average 52 | . . 54 . 107 64 35 26 33 Maximum Alert Level 1 | . . 1 . . . . . . Low Security (%) 96 | 100 100 91 . 100 100 100 100 100 Level 1 3 | . . 8 . . . . . . Level 2 . | . . . . . . . . . Level 3 . | . . . . . . . . . Level 4 . | . . . . . . . . . Level 5 . | . . . . . . . . . High Security . | . . . . . . . . . Max Security . | . . . . . . . . . Squads Dispatched 3 | . . . . . 1 . . 2 Investigation 2 | . . . . . 1 . . 1 Extermination . | . . . . . . . . . Reinforcement 1 | . . . . . . . . 1 Assault . | . . . . . . . . . Garrison . | . . . . . . . . . Intercept . | . . . . . . . . . Searches Triggered . | . . . . . . . . . Construction Impeded 1 | . . . . . . . . 1 Haulers Reinforced . | . . . . . . . . . Active Scanning Responses . | . . . . . . . . . Cargo Convoy Interrupts . | . . . . . . . . . Stealth | -11 -10 -10 -10 -9 -8 -7 -7 -6 --------- Run | Jun Mat Min Exi Min Mat Fac DSF Fac Distress Signals . | . . . . . . . . . Communications Jammed . | . . . . . . . . . Distress Signals . | . . . . . . . . . Times Spotted 43 | . . 14 . 3 14 . 1 11 Peak Tracking Total 12 | . . 6 . 3 12 . 1 10 Tactical Retreats 2 | . . 1 . . . . 1 . Traps | -11 -10 -10 -10 -9 -8 -7 -7 -6 ------- Run | Jun Mat Min Exi Min Mat Fac DSF Fac Traps Triggered . | . . . . . . . . . Indirectly . | . . . . . . . . . Trap Hack Attempts . | . . . . . . . . . Triggered . | . . . . . . . . . Disarmed . | . . . . . . . . . Reprogrammed . | . . . . . . . . . Reused . | . . . . . . . . . Traps Extracted . | . . . . . . . . . Installed . | . . . . . . . . . Triggered 1 | . . 1 . . . . . . Machines | -11 -10 -10 -10 -9 -8 -7 -7 -6 ---------- Run | Jun Mat Min Exi Min Mat Fac DSF Fac Machines Disabled 5 | . . 1 . 4 . . . . Max in Single Turn 4 | . . 1 . 4 . . . . Machines Repaired . | . . . . . . . . . Machines Sabotaged . | . . . . . . . . . Overloaded Fab Kills . | . . . . . . . . . Hacking | -11 -10 -10 -10 -9 -8 -7 -7 -6 --------- Run | Jun Mat Min Exi Min Mat Fac DSF Fac Machines Accessed 5 | . . . 1 . 2 1 . 1 Terminals 4 | . . . . . 2 1 . 1 Fabricators . | . . . . . . . . . Repair Stations . | . . . . . . . . . Recycling Units . | . . . . . . . . . Scanalyzers . | . . . . . . . . . Garrison Access . | . . . . . . . . . Total Hacks 11 | . . . 1 . 6 2 . 2 Successful 2 | . . . 1 . . 1 . . Failed 9 | . . . . . 6 1 . 2 Catastrophic 4 | . . . . . 3 . . 1 Database Lockouts . | . . . . . . . . . Manual 6 | . . . . . 6 . . . Terminals 10 | . . . . . 6 2 . 2 Fabricators . | . . . . . . . . . Repair Stations . | . . . . . . . . . Recycling Units . | . . . . . . . . . Scanalyzers . | . . . . . . . . . Garrison Access . | . . . . . . . . . Terminal Hacks 2 | . . . 1 . . 1 . . Record 1 | . . . 1 . . . . . Open DSF 1 | . . . . . . 1 . . Fabricator Hacks . | . . . . . . . . . Repair Station Hacks . | . . . . . . . . . Recycling Unit Hacks . | . . . . . . . . . Scanalyzer . | . . . . . . . . . Garrison Access Hacks . | . . . . . . . . . Unauthorized Hacks . | . . . . . . . . . Terminals . | . . . . . . . . . Fabricators . | . . . . . . . . . Repair Stations . | . . . . . . . . . Recycling Units . | . . . . . . . . . Scanalyzers . | . . . . . . . . . Garrison Access . | . . . . . . . . . Data Cores Recovered . | . . . . . . . . . Used . | . . . . . . . . . Hacking Detections 3 | . . . . . 2 . . 1 Full Trace Events 3 | . . . . . 2 . . 1 Feedback Events . | . . . . . . . . . Feedback Blocked . | . . . . . . . . . Robot Schematics Acquired . | . . . . . . . . . Robots Built . | . . . . . . . . . Authchips . | . . . . . . . . . Time . | . . . . . . . . . Total Robot Build Rating . | . . . . . . . . . Part Schematics Acquired . | . . . . . . . . . Parts Built . | . . . . . . . . . Authchips . | . . . . . . . . . Time . | . . . . . . . . . Total Part Build Rating . | . . . . . . . . . Parts Repaired . | . . . . . . . . . Time . | . . . . . . . . . Parts Recycled . | . . . . . . . . . Recycled Matter . | . . . . . . . . . Retrieved Matter . | . . . . . . . . . Retrieved Components . | . . . . . . . . . Parts Scanalyzed . | . . . . . . . . . Part Schematics Acquired . | . . . . . . . . . Parts Damaged . | . . . . . . . . . Bothacking | -11 -10 -10 -10 -9 -8 -7 -7 -6 ------------ Run | Jun Mat Min Exi Min Mat Fac DSF Fac Used RIF Installer . | . . . . . . . . . Robots Hacked . | . . . . . . . . . Non-combat . | . . . . . . . . . Combat . | . . . . . . . . . Robot Hacks Applied . | . . . . . . . . . Relay Couplers Released . | . . . . . . . . . Fabnet Peak Effective % . | . . . . . . . . . Robots Rewired . | . . . . . . . . . Allies Hacked . | . . . . . . . . . Hacks Repelled . | . . . . . . . . . Allies | -11 -10 -10 -10 -9 -8 -7 -7 -6 -------- Run | Jun Mat Min Exi Min Mat Fac DSF Fac Total Allies . | . . . . . . . . . Largest Group . | . . . . . . . . . Highest-Rated Group . | . . . . . . . . . Highest-Rated Ally . | . . . . . . . . . Total Orders . | . . . . . . . . . Ally Attacks . | . . . . . . . . . Total Damage . | . . . . . . . . . Kills . | . . . . . . . . . Allies Corrupted . | . . . . . . . . . Allies Melted . | . . . . . . . . . Intel | -11 -10 -10 -10 -9 -8 -7 -7 -6 ------- Run | Jun Mat Min Exi Min Mat Fac DSF Fac Robot Analysis Total . | . . . . . . . . . Derelict Logs Recovered 1 | . . . . 1 . . . . Drone Launches . | . . . . . . . . . Drone Recoveries . | . . . . . . . . . Exploration | -11 -10 -10 -10 -9 -8 -7 -7 -6 ------------- Run | Jun Mat Min Exi Min Mat Fac DSF Fac Turns Passed 532 | 11 22 194 49 55 65 27 36 73 Spaces Moved 1051 | 21 41 327 132 138 151 54 52 135 Core 644 | 21 41 305 . . 36 54 52 135 Treads . | . . . . . . . . . Legs . | . . . . . . . . . Wheels . | . . . . . . . . . Hover . | . . . . . . . . . Flight 407 | . . 22 132 138 115 . . . Fastest Speed 37 | 50 50 37 37 37 37 50 50 50 Average Speed 45 | 50 50 49 37 37 40 50 50 50 Slowest Speed 50 | 50 50 50 37 37 50 50 50 50 Overloaded Moves . | . . . . . . . . . Propulsion Burnouts . | . . . . . . . . . Robots Hopped 4 | . . . . 1 3 . . . Cave-ins Triggered . | . . . . . . . . . Exploration Rate (%) 29 | 3 13 64 49 56 22 3 47 6 Regions Visited 8 Branch Regions 3 Pre-discovered Areas 1 | . . . 1 . . . . . Known Exits Taken 2 | . . . . 1 . 1 . . Unknown Exits Taken 5 | 1 1 1 1 . 1 . . . Scrap Searched 2 | . . 1 . 1 . . . . Spaces Dug 12 | . . 8 . 4 . . . . Terrain Destroyed 85 | . . 68 . 6 11 . . . Melee . | . . . . . . . . . Projectile . | . . . . . . . . . AOE 85 | . . 68 . 6 11 . . . Terrain Rammed . | . . . . . . . . . Walls Destroyed . | . . . . . . . . . Machines Disabled . | . . . . . . . . . Actions | -11 -10 -10 -10 -9 -8 -7 -7 -6 --------- Run | Jun Mat Min Exi Min Mat Fac DSF Fac Total 1075 | 21 41 345 131 138 149 53 58 139 Wait . | . . . . . . . . . Move 1035 | 20 40 326 131 135 144 53 51 135 Hop 4 | . . . . 1 3 . . . Pick Up 3 | 1 1 . . . . . 1 . Fast Attach 9 | . . 2 . . 1 . 5 1 Attach 1 | . . 1 . . . . . . Detach . | . . . . . . . . . Swap . | . . . . . . . . . Drop . | . . . . . . . . . Fire 16 | . . 13 . 2 1 . . . Melee . | . . . . . . . . . Ram 6 | . . 3 . . . . . 3 Kick . | . . . . . . . . . Crush . | . . . . . . . . . Escape Stasis . | . . . . . . . . . Rewire 1 | . . . . . . . 1 . Trap . | . . . . . . . . . Miscellaneous . | . . . . . . . . . Route ------- -11/Junkyard -10/Materials -10/Mines -10/Exiles (discovered 2 exits: [*Min x2]) -9/Mines -8/Materials -7/Factory -7/DSF -6/Factory History --------- Turn | Location | Event 7 | -11/Junkyard | Discovered new exit (range 13) 12 | -11/Junkyard | Entered Materials 30 | -10/Materials | Discovered new exit (range 8) 34 | -10/Materials | Entered Mines 116 | -10/Mines | Assembled infested the area 121 | -10/Mines | Assisted by a Guerilla fighting off Assembled 205 | -10/Mines | Destroyed 7 combat bots 226 | -10/Mines | Deemed a non-threat by the Exiles lab entrance 226 | -10/Mines | Discovered new exit (range 5) 228 | -10/Mines | Entered Exiles 234 | -10/Exiles | Discovered new exit (range 15) 238 | -10/Exiles | Met 8R-AWN 244 | -10/Exiles | Met EX-HEX 258 | -10/Exiles | Met EX-DEC 261 | -10/Exiles | Learned location of Zion (-6) 272 | -10/Exiles | Discovered new exit (range 14) 277 | -10/Exiles | Entered Mines 316 | -9/Mines | Identified exit to Materials 317 | -9/Mines | Build established: Mutant 332 | -9/Mines | Entered Materials 332 | -8/Materials | Evolved 4 slots: Propulsion x2, Utility x2 393 | -8/Materials | Discovered new exit (range 9) 397 | -8/Materials | Entered Factory 397 | -7/Factory | Evolved 2 slots: Propulsion x1, Utility x1 414 | -7/Factory | Lost 4 parts (3n1w) 424 | -7/Factory | Identified exit to DSF 424 | -7/Factory | Entered DSF 437 | -7/DSF | Discovered new exit (range 14) 450 | -7/DSF | Additional patrols routed to DSF 460 | -7/DSF | Entered Factory 460 | -6/Factory | Evolved 2 slots: Propulsion x1, Utility x1 532 | -6/Factory | Core integrity fell below 50% 533 | -6/Factory | Self-destructed Last Messages --------------- PARAMETERS=PROPULSION+1,UTILITY+1 LOCATION=UNKNOWN GOAL=ESCAPE 00495_ K-01 Serf collects debris. 00499_ Connecting with Terminal... 00499_ Current location identified: Factory 00499_ ALERT: Suspicious activity at Terminal F019. Dispatching Investigation squad. 00500_ Slug penetrates Wall. 00512_ Acquired Imp. Medium Treads. 00514_ K-01 Serf collects debris. 00516_ T-07 Excavator is excavating. 00520_ Slammed into U-05 Engineer. 00521_ ALERT: Construction progress impeded, dispatching reinforcements to local area. 00523_ Slammed into S-27 Virus. 00523_ T-07 Excavator is excavating. 00524_ Slammed into U-05 Engineer. 00528_ Imp. Medium Treads destroyed. 00528_ S-27 Virus destroyed. Map ----- +----------------------------------------------------+ | ?????# #????? #???????????????????????????????? | | #????# #??####/##??????????????????????????????? | | #????# ####! #??????????????????????????????? | | ?????# #??????????????????????????????? | | ?????# #??????????????????????????????? | | ?????# = #??????????????????????????????? | | ?????######## #??????????????????????????????? | | ????########## ##??????????????????????????????? | | ???? # #???????????????????????????????? | | ???? """ # #???????????????????????????????? | | # """"" + #???????????????????????????????? | | # """"" # #???????????????????????????????? | | # # #??###+###??????????????????????? | | # """ # ####! ####### #??????????????? | | # """"" # = #??????????????? | | # """"" # %= #??????????????? | | # / #??????????????? | | # ## ##### #######????????????????? | | # [ ## #???## ##??????????????????????? | | # ## #????# #???????????????????????? | | ############### #????#s #???????????????????????? | | ??????????????# #????# #???????????????????????? | | ??????????????# #????# #???????????????????????? | | ??????????????# #????# #???????????????????????? | | ?????????????? ???## ######## #??????????????? | | ??????????????###???#! @| #????????????? | | ????????????????????# u!| #????????????? | | ????????????????????# s """"" +????????????? | | ????????????????????# s s """"" ??????????????? | | ????????????????????# """ ????????????????? | | ????????????????????# ????????????????? | | ????????????????????# """""s ???????????????? | | ????????????????????# """"" ???????????????? | | ????????????????????# """ ""??????????????? | | ????????????????????# ""??????????????? | | ????????????????????# ??? ??????????????? | | ????????????????????#t ??? ?? "F??????????????? | | ???????????????????? ??????? "???????????????? | | ????????????????????# ???????? ????????????????? | | ????????????????????# ???????????????????????????? | | ?????????????????????????????????????????????????? | | ?????????????????????????????????????????????????? | | ?????????????????????????????????????????????????? | | ?????????????????????????????????????????????????? | | ?????????????????????????????????????????????????? | | ?????????????????????????????????????????????????? | | ?????????????????????????????????????????????????? | | ?????????????????????????????????????????????????? | | ?????????????????????????????????????????????????? | | ?????????????????????????????????????????????????? | +----------------------------------------------------+ Best States ------------- Heat Dissipation 37 Energy Generation 5 Energy Capacity 100 Matter Stores 300 Matter Capacity 300 Sight Range 16 Terrain Scan Density 810 Utility Shielding 66 Evasion (%) 62 Item Schematics ----------------- None Robot Schematics ------------------ None Fabricated ------------ Nothing Alien Tech Used ----------------- None Achievements -------------- None Challenges ------------ None Game ------ Seed GrapheneStorageSheargun Manual? 0 Play Time 00:07:45 Cumulative 267.0 hours Start 2023.06.02 @ 13:42:10 End 2023.06.02 @ 13:54:21 Sessions 1 Manual Loads 0 Difficulty Rogue Special Mode None Game No. 787 Rogue 787 Adventurer 0 Explorer 0 Win Type - Total 15 Types 8/0/5/2/0/0/0/0/0 Lore% 88 Gallery% 86 Achievement% 77 Wizard Run 0 Options --------- ASCII 0 Keyboard 0 Movement Numpad Keybinds 0 Fullscreen 1 Font 16/SmallcapsGlow Map View 75x55 Tactical HUD 1 Map Filters NONE Filters NONE Steam 1 RUN: 40a349c0-b15d-4982-81a5-a6e6ac4c830c